[Event "Early-Titled-Tuesday-Blitz-March-26-2024"]
[Site "Chess.com"]
[Date "2024.03.26"]
[Round "8"]
[White "Gorbaev"]
[Black "RianKapriaga"]
[Result "0-1"]
[WhiteElo "2483"]
[BlackElo "2355"]
[TimeControl "180+1"]
[EndTime "9:26:16 PDT"]
[Termination "RianKapriaga won on time"]

1. Nf3 {[%clk 0:03:00.9]} 1... Nf6 {[%clk 0:02:56.7]} 2. c4 {[%clk 0:03:01.5]}
2... e6 {[%clk 0:02:56]} 3. Nc3 {[%clk 0:03:01.9]} 3... d5 {[%clk 0:02:55.8]} 4.
e3 {[%clk 0:03:01.9]} 4... Be7 {[%clk 0:02:54.9]} 5. b3 {[%clk 0:03:02.3]} 5...
O-O {[%clk 0:02:54.1]} 6. Bb2 {[%clk 0:03:01.4]} 6... c5 {[%clk 0:02:54]} 7.
cxd5 {[%clk 0:02:56.4]} 7... exd5 {[%clk 0:02:52.9]} 8. d4 {[%clk 0:02:56.4]}
8... Nc6 {[%clk 0:02:48.4]} 9. Be2 {[%clk 0:02:55.1]} 9... Bg4 {[%clk
0:02:42.9]} 10. O-O {[%clk 0:02:46.1]} 10... Bxf3 {[%clk 0:02:41.5]} 11. Bxf3
{[%clk 0:02:45.6]} 11... cxd4 {[%clk 0:02:41.5]} 12. exd4 {[%clk 0:02:44.4]}
12... Bb4 {[%clk 0:02:37.8]} 13. a3 {[%clk 0:02:43.8]} 13... Bxc3 {[%clk
0:02:36.6]} 14. Bxc3 {[%clk 0:02:44]} 14... Rc8 {[%clk 0:02:30.4]} 15. Bb2
{[%clk 0:02:43.8]} 15... Re8 {[%clk 0:02:27.7]} 16. Re1 {[%clk 0:02:40.6]} 16...
Qb6 {[%clk 0:02:25.8]} 17. Rc1 {[%clk 0:02:16.7]} 17... Rxe1+ {[%clk 0:02:13.9]}
18. Qxe1 {[%clk 0:02:14.9]} 18... Qxb3 {[%clk 0:02:11.5]} 19. Qe2 {[%clk
0:02:04.6]} 19... Re8 {[%clk 0:01:59.1]} 20. Qd2 {[%clk 0:02:04.6]} 20... h6
{[%clk 0:01:51.3]} 21. h3 {[%clk 0:01:56.1]} 21... Ne4 {[%clk 0:01:47.4]} 22.
Qc2 {[%clk 0:01:54.7]} 22... Qxc2 {[%clk 0:01:33.4]} 23. Rxc2 {[%clk 0:01:54.5]}
23... Nf6 {[%clk 0:01:21.2]} 24. Rc5 {[%clk 0:01:48.7]} 24... Re1+ {[%clk
0:01:15.6]} 25. Kh2 {[%clk 0:01:47.7]} 25... Rb1 {[%clk 0:01:11.7]} 26. Bc3
{[%clk 0:01:45.3]} 26... Rb3 {[%clk 0:01:03.9]} 27. a4 {[%clk 0:01:39.5]} 27...
Kf8 {[%clk 0:00:41.3]} 28. a5 {[%clk 0:01:30.3]} 28... a6 {[%clk 0:00:39]} 29.
Bd1 {[%clk 0:01:19]} 29... Rb5 {[%clk 0:00:37.7]} 30. Rxb5 {[%clk 0:01:16.7]}
30... axb5 {[%clk 0:00:38.6]} 31. f3 {[%clk 0:00:58.7]} 31... b4 {[%clk
0:00:37]} 32. Bd2 {[%clk 0:00:58.3]} 32... Ke7 {[%clk 0:00:31]} 33. Ba4 {[%clk
0:00:56.7]} 33... Nxd4 {[%clk 0:00:19.6]} 34. Bxb4+ {[%clk 0:00:56.1]} 34... Ke6
{[%clk 0:00:19]} 35. Kg3 {[%clk 0:00:50.5]} 35... Nd7 {[%clk 0:00:17.4]} 36. Kf2
{[%clk 0:00:48]} 36... Nb8 {[%clk 0:00:16.3]} 37. Ke3 {[%clk 0:00:45.8]} 37...
Ndc6 {[%clk 0:00:15.8]} 38. Be1 {[%clk 0:00:39.9]} 38... Na6 {[%clk 0:00:15.1]}
39. Bb3 {[%clk 0:00:32.5]} 39... Nc5 {[%clk 0:00:14.4]} 40. Ba2 {[%clk
0:00:32.1]} 40... f6 {[%clk 0:00:12.3]} 41. g4 {[%clk 0:00:30.2]} 41... Kd6
{[%clk 0:00:10.4]} 42. Bc3 {[%clk 0:00:27.5]} 42... Ke6 {[%clk 0:00:09.1]} 43.
f4 {[%clk 0:00:25.8]} 43... Kd6 {[%clk 0:00:08.9]} 44. h4 {[%clk 0:00:23.2]}
44... Ne4 {[%clk 0:00:08.5]} 45. Be1 {[%clk 0:00:21.8]} 45... Nc5 {[%clk
0:00:08.4]} 46. Bc3 {[%clk 0:00:16.8]} 46... Ne4 {[%clk 0:00:08.1]} 47. Bb2
{[%clk 0:00:15.7]} 47... Nc5 {[%clk 0:00:07.6]} 48. g5 {[%clk 0:00:15.3]} 48...
hxg5 {[%clk 0:00:06.4]} 49. hxg5 {[%clk 0:00:15.4]} 49... Nd7 {[%clk 0:00:06.3]}
50. gxf6 {[%clk 0:00:12.1]} 50... gxf6 {[%clk 0:00:07.2]} 51. Bc3 {[%clk
0:00:10.8]} 51... Ke6 {[%clk 0:00:05.1]} 52. Bb3 {[%clk 0:00:07.1]} 52... Kd6
{[%clk 0:00:04.9]} 53. Ba4 {[%clk 0:00:05.4]} 53... Nc5 {[%clk 0:00:04.6]} 54.
Bb5 {[%clk 0:00:05.5]} 54... Nd7 {[%clk 0:00:03.8]} 55. Kf3 {[%clk 0:00:01.6]}
55... d4 {[%clk 0:00:02.3]} 0-1

[Event "Early-Titled-Tuesday-Blitz-March-26-2024"]
[Site "Chess.com"]
[Date "2024.03.26"]
[Round "8"]
[White "GiorgianBarbosa"]
[Black "GMJustin"]
[Result "0-1"]
[WhiteElo "2499"]
[BlackElo "2370"]
[TimeControl "180+1"]
[EndTime "9:26:17 PDT"]
[Termination "GMJustin won by checkmate"]

1. c3 {[%clk 0:02:59.3]} 1... Nf6 {[%clk 0:02:35.8]} 2. d4 {[%clk 0:03:00.2]}
2... e6 {[%clk 0:02:22.6]} 3. Nf3 {[%clk 0:02:57.1]} 3... b6 {[%clk 0:02:15.1]}
4. Bf4 {[%clk 0:02:57.2]} 4... Bb7 {[%clk 0:02:13.5]} 5. e3 {[%clk 0:02:56.9]}
5... Be7 {[%clk 0:01:57.6]} 6. Bd3 {[%clk 0:02:56.7]} 6... O-O {[%clk
0:01:56.7]} 7. Nbd2 {[%clk 0:02:56]} 7... Nh5 {[%clk 0:01:49.3]} 8. Ng5 {[%clk
0:02:48.7]} 8... Nxf4 {[%clk 0:01:32.2]} 9. Bxh7+ {[%clk 0:02:40.9]} 9... Kh8
{[%clk 0:01:31.6]} 10. exf4 {[%clk 0:02:41.5]} 10... Bxg5 {[%clk 0:01:31.5]} 11.
fxg5 {[%clk 0:02:41.6]} 11... Kxh7 {[%clk 0:01:26.9]} 12. Qg4 {[%clk 0:02:37.2]}
12... Rh8 {[%clk 0:01:08.8]} 13. h4 {[%clk 0:02:36.1]} 13... Kg8 {[%clk
0:01:07.8]} 14. h5 {[%clk 0:02:36.4]} 14... f5 {[%clk 0:00:56]} 15. Qg3 {[%clk
0:02:34.2]} 15... Nc6 {[%clk 0:00:50.9]} 16. f4 {[%clk 0:02:34.6]} 16... Ne7
{[%clk 0:00:49]} 17. O-O-O {[%clk 0:02:33.9]} 17... Qe8 {[%clk 0:00:45]} 18. g6
{[%clk 0:02:30.4]} 18... Rh6 {[%clk 0:00:40.6]} 19. Nf3 {[%clk 0:02:28.1]} 19...
Bxf3 {[%clk 0:00:38.1]} 20. Qxf3 {[%clk 0:02:27]} 20... Nd5 {[%clk 0:00:35.6]}
21. g4 {[%clk 0:02:22.9]} 21... fxg4 {[%clk 0:00:33.7]} 22. Qe4 {[%clk
0:02:20.9]} 22... Qf8 {[%clk 0:00:32.3]} 23. c4 {[%clk 0:02:15.6]} 23... Qxf4+
{[%clk 0:00:29.8]} 24. Qxf4 {[%clk 0:02:14.7]} 24... Nxf4 {[%clk 0:00:30]} 25.
Rh4 {[%clk 0:02:09.6]} 25... Rxh5 {[%clk 0:00:18.9]} 26. Rxg4 {[%clk 0:02:09.2]}
26... Rf8 {[%clk 0:00:19.3]} 27. Rd2 {[%clk 0:02:03.6]} 27... Rf6 {[%clk
0:00:17.2]} 28. Kc2 {[%clk 0:01:58]} 28... Nxg6 {[%clk 0:00:16.4]} 29. Rdg2
{[%clk 0:01:58.1]} 29... Kf7 {[%clk 0:00:16.4]} 30. Kb3 {[%clk 0:01:56.6]} 30...
Rh3+ {[%clk 0:00:15]} 31. Kb4 {[%clk 0:01:56.9]} 31... Rhf3 {[%clk 0:00:14.3]}
32. b3 {[%clk 0:01:56.5]} 32... R3f4 {[%clk 0:00:13.7]} 33. Rg5 {[%clk
0:01:55.6]} 33... Rxd4 {[%clk 0:00:13]} 34. R5g3 {[%clk 0:01:54.1]} 34... a6
{[%clk 0:00:12.1]} 35. Kc3 {[%clk 0:01:53.4]} 35... c5 {[%clk 0:00:11.6]} 36.
Kb2 {[%clk 0:01:53]} 36... Rdf4 {[%clk 0:00:10.7]} 37. Ka3 {[%clk 0:01:53.9]}
37... Rf2 {[%clk 0:00:09]} 38. Rxg6 {[%clk 0:01:53.9]} 38... Rxg2 {[%clk
0:00:06.4]} 39. Rxg2 {[%clk 0:01:53.4]} 39... e5 {[%clk 0:00:06.6]} 40. Rd2
{[%clk 0:01:53.5]} 40... Ke6 {[%clk 0:00:06.3]} 41. Rg2 {[%clk 0:01:54.2]} 41...
e4 {[%clk 0:00:06.6]} 42. Rxg7 {[%clk 0:01:53]} 42... e3 {[%clk 0:00:06.5]} 43.
Rg3 {[%clk 0:01:49.7]} 43... e2 {[%clk 0:00:05.4]} 44. Re3+ {[%clk 0:01:49]}
44... Kd6 {[%clk 0:00:05.8]} 45. Rxe2 {[%clk 0:01:49.8]} 45... Kc6 {[%clk
0:00:06.2]} 46. Rd2 {[%clk 0:01:48.4]} 46... b5 {[%clk 0:00:06.3]} 47. Kb2
{[%clk 0:01:43.1]} 47... Rf4 {[%clk 0:00:05.6]} 48. Kc3 {[%clk 0:01:35.5]} 48...
d6 {[%clk 0:00:06]} 49. Rh2 {[%clk 0:01:34.7]} 49... Rg4 {[%clk 0:00:05.9]} 50.
Rf2 {[%clk 0:01:29.4]} 50... Rg3+ {[%clk 0:00:06]} 51. Kb2 {[%clk 0:01:29]}
51... Rd3 {[%clk 0:00:05.7]} 52. Kc2 {[%clk 0:01:24.5]} 52... Rd4 {[%clk
0:00:05.9]} 53. Kc3 {[%clk 0:01:24.8]} 53... Kb6 {[%clk 0:00:05.7]} 54. Rf6
{[%clk 0:01:22]} 54... Ka5 {[%clk 0:00:05.3]} 55. a3 {[%clk 0:01:15.3]} 55...
bxc4 {[%clk 0:00:04.6]} 56. b4+ {[%clk 0:01:11.1]} 56... Kb5 {[%clk 0:00:04.7]}
57. a4+ {[%clk 0:01:03.4]} 57... Kc6 {[%clk 0:00:03.3]} 58. bxc5 {[%clk
0:01:04.3]} 58... Kxc5 {[%clk 0:00:03.6]} 59. Rf8 {[%clk 0:00:59.1]} 59... Rd3+
{[%clk 0:00:03.8]} 60. Kc2 {[%clk 0:00:59.9]} 60... d5 {[%clk 0:00:04.3]} 61.
Ra8 {[%clk 0:00:57.4]} 61... Kb6 {[%clk 0:00:04.5]} 62. Rd8 {[%clk 0:00:51.7]}
62... Ka5 {[%clk 0:00:04.6]} 63. Rd6 {[%clk 0:00:50.7]} 63... d4 {[%clk
0:00:04.3]} 64. Kc1 {[%clk 0:00:45.2]} 64... Rc3+ {[%clk 0:00:04.5]} 65. Kb2
{[%clk 0:00:45.4]} 65... Rb3+ {[%clk 0:00:04.4]} 66. Ka2 {[%clk 0:00:42.4]}
66... d3 {[%clk 0:00:04.7]} 67. Rd4 {[%clk 0:00:39.1]} 67... Kb4 {[%clk
0:00:04.7]} 68. a5 {[%clk 0:00:33.7]} 68... Kc3 {[%clk 0:00:04.7]} 69. Rd6
{[%clk 0:00:32.6]} 69... d2 {[%clk 0:00:04.8]} 70. Rd8 {[%clk 0:00:28.3]} 70...
Rb2+ {[%clk 0:00:05]} 71. Ka1 {[%clk 0:00:28.1]} 71... Rc2 {[%clk 0:00:05.3]}
72. Kb1 {[%clk 0:00:26.1]} 72... Rc1+ {[%clk 0:00:05.4]} 73. Ka2 {[%clk
0:00:26.1]} 73... d1=Q {[%clk 0:00:05.4]} 74. Rxd1 {[%clk 0:00:27]} 74... Rxd1
{[%clk 0:00:05.8]} 75. Ka3 {[%clk 0:00:27.9]} 75... Ra1# {[%clk 0:00:06.4]} 0-1

[Event "Early-Titled-Tuesday-Blitz-March-26-2024"]
[Site "Chess.com"]
[Date "2024.03.26"]
[Round "8"]
[White "Juicy_Fork"]
[Black "Let_it_be_1"]
[Result "1-0"]
[WhiteElo "2539"]
[BlackElo "2653"]
[TimeControl "180+1"]
[EndTime "9:26:24 PDT"]
[Termination "Juicy_Fork won on time"]

1. e4 {[%clk 0:02:57.2]} 1... e6 {[%clk 0:03:00.2]} 2. d4 {[%clk 0:02:57]} 2...
d5 {[%clk 0:03:00.4]} 3. Nc3 {[%clk 0:02:56.1]} 3... Nf6 {[%clk 0:03:00.7]} 4.
e5 {[%clk 0:02:55.6]} 4... Nfd7 {[%clk 0:03:01]} 5. f4 {[%clk 0:02:56.3]} 5...
c5 {[%clk 0:03:01.1]} 6. Nf3 {[%clk 0:02:56.8]} 6... Nc6 {[%clk 0:03:01.4]} 7.
Be3 {[%clk 0:02:53.8]} 7... Qb6 {[%clk 0:03:01.6]} 8. a3 {[%clk 0:02:51.3]} 8...
cxd4 {[%clk 0:02:42]} 9. Nxd4 {[%clk 0:02:52.2]} 9... Bc5 {[%clk 0:02:39]} 10.
Na4 {[%clk 0:02:45.2]} 10... Qa5+ {[%clk 0:02:37.6]} 11. c3 {[%clk 0:02:16]}
11... Bxd4 {[%clk 0:02:33.4]} 12. Bxd4 {[%clk 0:02:16.9]} 12... Nxd4 {[%clk
0:02:33.5]} 13. Qxd4 {[%clk 0:02:15.2]} 13... b6 {[%clk 0:02:33.7]} 14. Qb4
{[%clk 0:02:10.1]} 14... Qxb4 {[%clk 0:02:28.6]} 15. cxb4 {[%clk 0:02:05.3]}
15... f6 {[%clk 0:01:56.8]} 16. Bb5 {[%clk 0:01:53]} 16... fxe5 {[%clk
0:01:53.8]} 17. fxe5 {[%clk 0:01:47.4]} 17... O-O {[%clk 0:01:51.5]} 18. Bxd7
{[%clk 0:01:35.4]} 18... Bxd7 {[%clk 0:01:51.7]} 19. Nc3 {[%clk 0:01:36.3]}
19... Rf5 {[%clk 0:01:41.6]} 20. O-O-O {[%clk 0:01:29.1]} 20... Rxe5 {[%clk
0:01:41]} 21. Rhe1 {[%clk 0:01:26.8]} 21... Rxe1 {[%clk 0:01:32.7]} 22. Rxe1
{[%clk 0:01:25.9]} 22... Rf8 {[%clk 0:01:31.3]} 23. Re2 {[%clk 0:01:12.3]} 23...
Rf1+ {[%clk 0:01:22.9]} 24. Kd2 {[%clk 0:01:07.4]} 24... Kf7 {[%clk 0:01:14.3]}
25. Nd1 {[%clk 0:00:52.8]} 25... Bb5 {[%clk 0:01:04.3]} 26. Re3 {[%clk
0:00:41.2]} 26... Ke7 {[%clk 0:01:00.4]} 27. Rc3 {[%clk 0:00:35.4]} 27... Kd6
{[%clk 0:00:55]} 28. h4 {[%clk 0:00:12]} 28... Rg1 {[%clk 0:00:51.1]} 29. Rg3
{[%clk 0:00:09.6]} 29... g6 {[%clk 0:00:50.5]} 30. Nc3 {[%clk 0:00:09.8]} 30...
Bf1 {[%clk 0:00:43.3]} 31. h5 {[%clk 0:00:06.9]} 31... Rxg2+ {[%clk 0:00:39]}
32. Rxg2 {[%clk 0:00:06.3]} 32... Bxg2 {[%clk 0:00:39.9]} 33. hxg6 {[%clk
0:00:06.2]} 33... hxg6 {[%clk 0:00:39.5]} 34. Nb5+ {[%clk 0:00:06.6]} 34... Ke5
{[%clk 0:00:20.6]} 35. Nxa7 {[%clk 0:00:07.5]} 35... d4 {[%clk 0:00:21]} 36. Nc8
{[%clk 0:00:06.3]} 36... b5 {[%clk 0:00:21]} 37. Ke2 {[%clk 0:00:03.4]} 37... g5
{[%clk 0:00:20.4]} 38. b3 {[%clk 0:00:02.6]} 38... Bd5 {[%clk 0:00:19.8]} 39.
Na7 {[%clk 0:00:02.1]} 39... Bxb3 {[%clk 0:00:19]} 40. Kf3 {[%clk 0:00:01.4]}
40... Bc4 {[%clk 0:00:18.7]} 41. Nc6+ {[%clk 0:00:01.7]} 41... Kd5 {[%clk
0:00:16.8]} 42. Ne7+ {[%clk 0:00:02.4]} 42... Kd6 {[%clk 0:00:15.4]} 43. Ng6
{[%clk 0:00:02.7]} 43... e5 {[%clk 0:00:14.9]} 44. Ke4 {[%clk 0:00:02.6]} 44...
Bb3 {[%clk 0:00:14]} 45. Kd3 {[%clk 0:00:02.7]} 45... Bc4+ {[%clk 0:00:12.6]}
46. Ke4 {[%clk 0:00:02.7]} 46... Bg8 {[%clk 0:00:11.9]} 47. Nxe5 {[%clk
0:00:02.3]} 47... Bh7+ {[%clk 0:00:08.3]} 48. Kxd4 {[%clk 0:00:02.8]} 48... Bf5
{[%clk 0:00:08.5]} 49. Nf7+ {[%clk 0:00:03]} 49... Kc6 {[%clk 0:00:07.7]} 50.
Nxg5 {[%clk 0:00:03.9]} 50... Kb6 {[%clk 0:00:07.5]} 51. Nf3 {[%clk 0:00:03.4]}
51... Bg4 {[%clk 0:00:07.2]} 52. Ne5 {[%clk 0:00:03.7]} 52... Be2 {[%clk
0:00:07.4]} 53. Kd5 {[%clk 0:00:03.5]} 53... Bf1 {[%clk 0:00:07.5]} 54. Nd7+
{[%clk 0:00:03.8]} 54... Kc7 {[%clk 0:00:07]} 55. Nf6 {[%clk 0:00:03.9]} 55...
Kb6 {[%clk 0:00:07.3]} 56. Kd6 {[%clk 0:00:02.6]} 56... Be2 {[%clk 0:00:07.3]}
57. Nd5+ {[%clk 0:00:02.7]} 57... Ka6 {[%clk 0:00:05.3]} 58. Kc5 {[%clk
0:00:03.2]} 58... Kb7 {[%clk 0:00:02.6]} 59. Nc3 {[%clk 0:00:03.7]} 59... Bf1
{[%clk 0:00:02.9]} 60. Nxb5 {[%clk 0:00:04.2]} 60... Ka6 {[%clk 0:00:02.3]} 61.
Nd6 {[%clk 0:00:04.7]} 61... Ka7 {[%clk 0:00:02.3]} 62. a4 {[%clk 0:00:04.8]}
62... Kb8 {[%clk 0:00:02.1]} 63. Kb6 {[%clk 0:00:04.4]} 63... Ka8 {[%clk
0:00:01.5]} 64. a5 {[%clk 0:00:04.8]} 64... Bg2 {[%clk 0:00:01.7]} 65. Nb5
{[%clk 0:00:03.6]} 65... Kb8 {[%clk 0:00:01.7]} 66. Nc7 {[%clk 0:00:03.9]} 66...
Bf1 {[%clk 0:00:01.2]} 67. a6 {[%clk 0:00:04.5]} 1-0

[Event "Early-Titled-Tuesday-Blitz-March-26-2024"]
[Site "Chess.com"]
[Date "2024.03.26"]
[Round "8"]
[White "Pelusiansky"]
[Black "Harry_Rakkel"]
[Result "1-0"]
[WhiteElo "2550"]
[BlackElo "2708"]
[TimeControl "180+1"]
[EndTime "9:26:27 PDT"]
[Termination "Pelusiansky won on time"]

1. d4 {[%clk 0:03:00.9]} 1... g6 {[%clk 0:02:58.7]} 2. c4 {[%clk 0:02:58.1]}
2... Bg7 {[%clk 0:02:58.4]} 3. Nc3 {[%clk 0:02:58.7]} 3... d6 {[%clk 0:02:57.8]}
4. e4 {[%clk 0:02:58.8]} 4... a6 {[%clk 0:02:55]} 5. Nge2 {[%clk 0:02:58.4]}
5... c6 {[%clk 0:02:54.9]} 6. Be3 {[%clk 0:02:57.4]} 6... b5 {[%clk 0:02:54.8]}
7. cxb5 {[%clk 0:02:49]} 7... axb5 {[%clk 0:02:54.4]} 8. a3 {[%clk 0:02:49.5]}
8... Nf6 {[%clk 0:02:51.6]} 9. f3 {[%clk 0:02:49.3]} 9... O-O {[%clk 0:02:50.8]}
10. Ng3 {[%clk 0:02:42.3]} 10... Nbd7 {[%clk 0:02:44.3]} 11. Be2 {[%clk
0:02:38.5]} 11... h5 {[%clk 0:02:42.5]} 12. O-O {[%clk 0:02:38.8]} 12... h4
{[%clk 0:02:42.2]} 13. Nh1 {[%clk 0:02:39.4]} 13... Nb6 {[%clk 0:02:40.4]} 14.
Nf2 {[%clk 0:02:35.3]} 14... Bd7 {[%clk 0:02:34.1]} 15. Bg5 {[%clk 0:02:26.5]}
15... h3 {[%clk 0:02:33.2]} 16. Nxh3 {[%clk 0:02:16.5]} 16... Bxh3 {[%clk
0:02:32.4]} 17. gxh3 {[%clk 0:02:16.9]} 17... Qd7 {[%clk 0:02:31.1]} 18. Kg2
{[%clk 0:02:16.5]} 18... Nc4 {[%clk 0:02:28.9]} 19. Bxc4 {[%clk 0:02:10]} 19...
bxc4 {[%clk 0:02:28.4]} 20. Qe2 {[%clk 0:02:04.8]} 20... Rab8 {[%clk 0:02:25.1]}
21. Rf2 {[%clk 0:01:59.5]} 21... Nh5 {[%clk 0:02:24]} 22. Qxc4 {[%clk
0:01:44.9]} 22... d5 {[%clk 0:01:51.8]} 23. exd5 {[%clk 0:01:30.5]} 23... Qf5
{[%clk 0:01:51.7]} 24. h4 {[%clk 0:01:26.4]} 24... cxd5 {[%clk 0:01:44.9]} 25.
Nxd5 {[%clk 0:01:15.3]} 25... Rfe8 {[%clk 0:01:43.7]} 26. Qc5 {[%clk 0:01:01.9]}
26... Kh7 {[%clk 0:01:31.4]} 27. Re1 {[%clk 0:00:38.5]} 27... f6 {[%clk
0:01:07.1]} 28. Bc1 {[%clk 0:00:31.4]} 28... Rbc8 {[%clk 0:01:03.1]} 29. Qb5
{[%clk 0:00:25.3]} 29... Rxc1 {[%clk 0:00:51.2]} 30. Rxc1 {[%clk 0:00:25.4]}
30... Nf4+ {[%clk 0:00:51.3]} 31. Kf1 {[%clk 0:00:25.5]} 31... Rd8 {[%clk
0:00:43.8]} 32. Nc3 {[%clk 0:00:23.4]} 32... Qh3+ {[%clk 0:00:41.2]} 33. Kg1
{[%clk 0:00:23.5]} 33... Qxh4 {[%clk 0:00:40]} 34. Qf1 {[%clk 0:00:20.4]} 34...
Nh3+ {[%clk 0:00:33.7]} 35. Kh1 {[%clk 0:00:20.9]} 35... Nxf2+ {[%clk
0:00:33.2]} 36. Kg2 {[%clk 0:00:21.5]} 36... Nh3 {[%clk 0:00:31.8]} 37. Rd1
{[%clk 0:00:21.1]} 37... Nf4+ {[%clk 0:00:29.9]} 38. Kh1 {[%clk 0:00:21.4]}
38... Rb8 {[%clk 0:00:29.3]} 39. b4 {[%clk 0:00:17.7]} 39... Rc8 {[%clk
0:00:29.5]} 40. Ne4 {[%clk 0:00:18.1]} 40... Rc2 {[%clk 0:00:30]} 41. Rd2 {[%clk
0:00:16.5]} 41... Rxd2 {[%clk 0:00:26.3]} 42. Nxd2 {[%clk 0:00:16.8]} 42... f5
{[%clk 0:00:26.1]} 43. Nb3 {[%clk 0:00:16.4]} 43... Nd5 {[%clk 0:00:20.3]} 44.
b5 {[%clk 0:00:15]} 44... Qf4 {[%clk 0:00:19.8]} 45. Qe2 {[%clk 0:00:09]} 45...
Bf6 {[%clk 0:00:17.5]} 46. a4 {[%clk 0:00:08.7]} 46... Qc7 {[%clk 0:00:17.5]}
47. Qd1 {[%clk 0:00:07.7]} 47... Qc3 {[%clk 0:00:16.2]} 48. Nc5 {[%clk
0:00:07.3]} 48... Ne3 {[%clk 0:00:11.7]} 49. Qg1 {[%clk 0:00:06.2]} 49... Qxd4
{[%clk 0:00:10.8]} 50. Ne6 {[%clk 0:00:06.7]} 50... Qd3 {[%clk 0:00:09.5]} 51.
Nf8+ {[%clk 0:00:06.8]} 51... Kg7 {[%clk 0:00:07.4]} 52. Nxg6 {[%clk 0:00:07.3]}
52... Ng4 {[%clk 0:00:06.1]} 53. fxg4 {[%clk 0:00:04.7]} 53... Kxg6 {[%clk
0:00:05.6]} 54. gxf5+ {[%clk 0:00:04.6]} 54... Kxf5 {[%clk 0:00:05.9]} 55. Qf2+
{[%clk 0:00:03.9]} 55... Ke6 {[%clk 0:00:04.6]} 56. Kg2 {[%clk 0:00:04.2]} 56...
Qe4+ {[%clk 0:00:03.5]} 57. Qf3 {[%clk 0:00:04.7]} 57... Qxa4 {[%clk 0:00:04.1]}
58. Qc6+ {[%clk 0:00:04.3]} 58... Kf7 {[%clk 0:00:03.9]} 59. Qd5+ {[%clk
0:00:04.6]} 59... Kf8 {[%clk 0:00:04.2]} 60. Qd8+ {[%clk 0:00:04.5]} 60... Kg7
{[%clk 0:00:04.6]} 61. b6 {[%clk 0:00:05]} 61... Qa2+ {[%clk 0:00:04]} 62. Kf3
{[%clk 0:00:05.1]} 62... Qb3+ {[%clk 0:00:04.2]} 63. Ke2 {[%clk 0:00:05.5]}
63... Qb5+ {[%clk 0:00:04.2]} 64. Kf3 {[%clk 0:00:05.8]} 64... Qb4 {[%clk
0:00:03.6]} 65. Ke2 {[%clk 0:00:06]} 65... Bd4 {[%clk 0:00:02.6]} 66. b7 {[%clk
0:00:04.8]} 66... Qb2+ {[%clk 0:00:01.3]} 67. Kd3 {[%clk 0:00:05.4]} 1-0